bitfinex/quotes_BTCUSD_20240918
["timestamp","ask_amount","ask_price","bid_price","bid_amount"]
[1726654456848,0.202596,59667.0,59666.0,22.15435763]
[1726654457061,0.033,59667.0,59666.0,22.32195663]
[1726654457286,0.033,59667.0,59666.0,22.15435763]
[1726654457520,0.033,59667.0,59666.0,22.32195663]
[1726654457740,0.033,59667.0,59666.0,22.32695663]
[1726654458199,0.033,59669.0,59668.0,0.190594]
[1726654458415,0.033,59673.0,59672.0,0.525747]
[1726654458639,0.033,59673.0,59672.0,0.023]
[1726654459083,0.033,59672.0,59671.0,0.0988]
[1726654459303,0.033,59672.0,59666.0,22.09746437]
[1726654459518,0.033,59667.0,59666.0,22.12046437]
[1726654459745,0.033,59667.0,59666.0,22.12128737]
[1726654459937,0.033,59670.0,59667.0,0.023]
[1726654460606,0.033,59667.0,59666.0,22.11528737]
[1726654460841,0.22127372,59667.0,59666.0,22.09228737]
[1726654461291,0.58634914,59667.0,59666.0,22.09228737]
[1726654461936,0.25115614,59667.0,59666.0,22.09228737]
[1726654462156,0.25115614,59667.0,59666.0,22.09728737]
[1726654463053,0.08356014,59667.0,59666.0,22.09728737]
[1726654463725,0.05144614,59667.0,59666.0,22.42748637]
[1726654463991,0.07471021,59667.0,59666.0,23.28848337]
[1726654464229,0.07471021,59667.0,59666.0,23.29448337]
[1726654464230,0.04841788,59667.0,59666.0,23.29448337]
[1726654464452,0.04841788,59667.0,59666.0,22.09228737]
[1726654464453,0.58620688,59667.0,59666.0,22.09228737]
[1726654464690,0.58620688,59667.0,59666.0,22.10228737]
[1726654464691,1.08441788,59667.0,59666.0,22.10228737]
[1726654464917,1.58720688,59667.0,59666.0,22.10228737]
[1726654465142,1.25101388,59667.0,59666.0,22.09228737]
[1726654465359,1.08441788,59667.0,59666.0,22.10628737]
[1726654465573,1.25201388,59667.0,59666.0,22.10628737]
[1726654465797,1.08441788,59667.0,59666.0,22.10628737]
[1726654466008,1.25201388,59667.0,59666.0,22.10628737]
[1726654466445,1.92239988,59667.0,59666.0,22.10628737]
[1726654466660,1.58720688,59667.0,59666.0,22.10628737]
[1726654466876,1.89160426,59667.0,59666.0,22.09228737]
[1726654467096,1.89150876,59667.0,59666.0,22.09228737]
[1726654467325,1.92115158,59667.0,59666.0,22.10628737]
[1726654467556,1.58595858,59667.0,59666.0,22.09228737]
[1726654467779,1.08316958,59667.0,59666.0,22.09228737]
[1726654468065,1.08316958,59667.0,59666.0,22.96728437]
[1726654468066,1.04816958,59667.0,59666.0,22.96728437]
[1726654468282,1.04816958,59667.0,59666.0,23.06668437]
[1726654468721,1.07445989,59667.0,59666.0,23.06668437]
[1726654469612,1.07645989,59667.0,59666.0,22.73148537]
[1726654470094,1.07645989,59667.0,59666.0,22.39628637]
[1726654470439,1.07645989,59667.0,59666.0,22.73148537]
[1726654470671,1.07645989,59667.0,59666.0,22.71748537]
[1726654471103,1.07445989,59667.0,59666.0,23.06668437]
[1726654471326,1.07445989,59667.0,59666.0,22.73148537]
[1726654471763,1.07445989,59667.0,59666.0,23.05268437]
[1726654472174,1.07445989,59667.0,59666.0,22.73148537]
[1726654472421,1.07445989,59667.0,59666.0,22.71748537]
[1726654473371,1.07445989,59667.0,59666.0,22.38228637]
[1726654473613,1.07645989,59667.0,59666.0,22.38228637]
[1726654473813,1.07445989,59667.0,59666.0,22.71748537]
[1726654474026,1.04816958,59667.0,59666.0,22.71748537]
[1726654474268,1.04819378,59667.0,59666.0,22.71748537]
[1726654474482,1.05019378,59667.0,59666.0,22.73148537]
[1726654474711,1.05019378,59667.0,59666.0,22.71748537]
[1726654474956,0.167578,59674.0,59666.0,22.71748537]
[1726654474957,0.23875917,59723.0,59666.0,22.11528737]
[1726654475186,0.797646,59753.0,59726.0,0.167431]
[1726654475187,0.001646,59727.0,59726.0,0.167431]
[1726654475417,0.001646,59727.0,59717.0,0.023]
[1726654475631,0.001646,59727.0,59701.0,0.023]
[1726654475632,0.32410212,59726.0,59701.0,0.023]
[1726654475850,0.001646,59727.0,59708.0,0.33496]
[1726654476099,0.001646,59727.0,59709.0,0.023]
[1726654476329,0.001646,59727.0,59711.0,0.023]
[1726654476580,0.001646,59727.0,59711.0,0.190472]
[1726654476818,0.001646,59727.0,59711.0,0.023]
[1726654477101,0.001646,59727.0,59699.0,0.335009]
[1726654477348,0.001646,59727.0,59702.0,0.023]
[1726654477578,0.001646,59727.0,59700.0,0.1]
[1726654478101,0.167434,59725.0,59701.0,0.084]
[1726654478351,0.001646,59727.0,59701.0,0.076]
[1726654478812,0.001646,59727.0,59710.0,0.167476]
[1726654479276,9.001646,59727.0,59710.0,0.167476]
[1726654479525,9.169074,59727.0,59710.0,0.167476]
[1726654480258,0.167436,59725.0,59707.0,0.023]
[1726654480496,0.02627251,59723.0,59708.0,0.167481]
[1726654480730,0.02627251,59723.0,59706.0,0.023]
[1726654480731,0.19371251,59723.0,59706.0,0.023]
[1726654480962,0.02627251,59723.0,59707.0,0.167483]
[1726654481218,0.02627251,59723.0,59701.0,0.085]
[1726654481219,0.334885,59722.0,59701.0,0.085]
[1726654481469,0.36115651,59723.0,59702.0,0.334996]
[1726654481735,0.334884,59723.0,59710.0,0.007]
[1726654481998,0.02627298,59718.0,59703.0,0.1]
[1726654482490,0.16746,59716.0,59707.0,0.012]
[1726654482728,0.16746,59716.0,59705.0,0.16749]
[1726654483172,0.16746,59716.0,59703.0,0.1]
[1726654483397,0.02627298,59718.0,59703.0,0.1]
[1726654483641,0.167475,59711.0,59701.0,0.076]
[1726654483876,0.334938,59713.0,59698.0,0.023]
[1726654484130,0.167486,59707.0,59692.0,0.023]
[1726654484352,0.03,59716.0,59691.0,0.416657]
[1726654484564,0.33496,59709.0,59691.0,0.0816]
[1726654484776,0.02627574,59712.0,59691.0,0.0816]
[1726654484777,0.167488,59706.0,59703.0,0.014]
[1726654485017,0.02980969,59705.0,59691.0,0.0816]
[1726654485239,0.02980969,59704.0,59691.0,0.0816]
[1726654485463,0.02980969,59704.0,59692.0,0.014]
[1726654485722,0.334943,59712.0,59692.0,0.014]
[1726654485944,0.0925,59714.0,59670.0,0.1054]
[1726654485945,0.0598097,59703.0,59670.0,0.1054]
[1726654486165,0.1298097,59702.0,59670.0,0.0754]
[1726654486380,0.1298097,59702.0,59670.0,0.1054]
[1726654486381,0.0298097,59702.0,59670.0,0.1054]
[1726654486609,0.167527,59692.0,59670.0,0.1054]
[1726654486842,0.01857586,59691.0,59670.0,0.1054]
[1726654487049,0.335025,59697.0,59670.0,0.1054]
[1726654487050,0.01857586,59690.0,59679.0,0.335123]
[1726654487264,0.04838556,59689.0,59673.0,0.335155]
[1726654487475,0.01857586,59688.0,59681.0,0.023]
[1726654487691,0.04338556,59687.0,59681.0,0.023]
[1726654487925,0.0298097,59687.0,59681.0,0.190557]
[1726654488177,0.02628456,59688.0,59674.0,0.1]
[1726654488178,0.167545,59686.0,59678.0,0.023]
[1726654488400,0.167545,59686.0,59674.0,0.1]
[1726654488401,0.02548456,59688.0,59680.0,0.16756]
[1726654488624,0.03053003,59687.0,59680.0,0.16756]
[1726654488844,0.19302256,59688.0,59679.0,0.023]
[1726654489065,0.03055749,59687.0,59679.0,0.190562]
[1726654489292,0.03155749,59687.0,59679.0,0.190562]
[1726654489512,0.02548456,59688.0,59679.0,0.190562]
[1726654489513,0.19302256,59688.0,59679.0,0.190562]
[1726654489724,0.02548456,59688.0,59678.0,0.023]
[1726654489936,0.001,59687.0,59680.0,0.023]
[1726654490373,0.001,59687.0,59678.0,0.023]
[1726654490810,0.001,59687.0,59674.0,0.123]
[1726654491025,0.167552,59683.0,59675.0,0.167572]
[1726654491267,0.02548456,59688.0,59671.0,0.435167]
[1726654491268,0.02548456,59688.0,59676.0,0.023]
[1726654491511,0.335104,59683.0,59674.0,0.023]
[1726654491796,0.167558,59681.0,59674.0,0.023]
[1726654492049,0.335104,59683.0,59674.0,0.023]
[1726654492050,0.502657,59683.0,59675.0,0.023]
[1726654492293,0.335094,59685.0,59675.0,0.023]
[1726654492507,0.335094,59685.0,59673.0,0.267578]
[1726654492508,0.335094,59685.0,59674.0,0.023]
[1726654492740,0.167558,59681.0,59674.0,0.190576]
[1726654493250,0.335116,59681.0,59671.0,0.023]
[1726654493497,0.335116,59681.0,59671.0,0.123]
[1726654493747,0.335116,59681.0,59670.0,0.242988]
[1726654493748,0.002,59694.0,59670.0,0.0754]
[1726654493985,0.002,59689.0,59665.0,0.33533422]
[1726654494222,0.0303629,59688.0,59665.0,0.00013422]
[1726654494443,0.335148,59676.0,59665.0,0.33533522]
[1726654494659,0.167583,59672.0,59665.0,0.33533522]
[1726654494860,0.335159,59674.0,59665.0,0.00013422]
[1726654495343,0.032,59692.0,59665.0,0.00013422]
[1726654495561,0.167581,59673.0,59667.0,0.167595]
[1726654495847,0.335128,59679.0,59665.0,0.00013422]
[1726654496047,0.502789,59667.0,59665.0,0.00013422]
[1726654496781,0.837982,59667.0,59665.0,0.00013422]
[1726654497021,0.502789,59667.0,59665.0,0.00013422]
[1726654497233,0.167587,59671.0,59665.0,0.00013422]
[1726654497443,0.03,59683.0,59665.0,0.00013422]
[1726654497859,0.167596,59667.0,59665.0,0.00013422]
[1726654498286,0.502789,59667.0,59665.0,0.00013422]
[1726654498493,0.167596,59667.0,59665.0,0.00013422]
[1726654498677,0.502789,59667.0,59665.0,0.00013422]
[1726654498887,0.837982,59667.0,59665.0,0.00013422]
[1726654499758,1.22356369,59667.0,59665.0,0.00013422]
[1726654499986,1.174175,59667.0,59665.0,0.00013422]
[1726654500240,1.22355948,59667.0,59665.0,0.00013422]
[1726654500450,1.27344972,59667.0,59665.0,0.00013422]
[1726654501509,1.27244972,59667.0,59665.0,0.00013422]
[1726654501717,1.30244972,59667.0,59665.0,0.00013422]
[1726654501927,2.10483572,59667.0,59665.0,0.00013422]
[1726654502167,2.13783572,59667.0,59666.0,19.63786737]
[1726654502382,2.13783572,59667.0,59666.0,15.48702417]
[1726654502589,2.47302872,59667.0,59666.0,15.48702417]
[1726654503008,2.47002872,59667.0,59666.0,14.38656417]
[1726654503212,2.47002872,59667.0,59666.0,12.31972417]
[1726654503456,2.48002872,59667.0,59666.0,11.31982417]
[1726654503665,2.43064424,59667.0,59666.0,10.28640417]
[1726654503875,2.09545124,59667.0,59666.0,10.21936417]
[1726654504085,2.09545124,59667.0,59666.0,10.15232417]
[1726654504300,2.11845124,59667.0,59666.0,10.15232417]
[1726654504510,2.09545124,59667.0,59666.0,10.15232417]
[1726654504760,2.08545124,59667.0,59666.0,10.11880417]
[1726654504981,1.75025824,59667.0,59666.0,10.11880417]
[1726654505187,1.76425824,59667.0,59666.0,10.11880417]
[1726654505399,1.75025824,59667.0,59666.0,10.11880417]
[1726654505827,1.73315726,59667.0,59666.0,10.11880417]
[1726654506067,0.88683408,59667.0,59666.0,10.11880417]
[1726654506276,0.85677126,59667.0,59666.0,10.11880417]
[1726654506498,0.87077126,59667.0,59666.0,10.11880417]
[1726654506721,0.85677126,59667.0,59666.0,10.11880417]
[1726654506954,1.19196426,59667.0,59666.0,10.11880417]
[1726654507169,0.86267126,59667.0,59666.0,10.11880417]
[1726654507635,0.99467126,59667.0,59666.0,10.11880417]
[1726654507859,1.309075,59667.0,59666.0,10.11880417]
[1726654508080,1.32791786,59667.0,59666.0,10.11880417]
[1726654508308,1.31191786,59667.0,59666.0,10.11880417]
[1726654508530,0.96272486,59667.0,59666.0,10.11880417]
[1726654509006,0.97072486,59667.0,59666.0,10.11880417]
[1726654509224,1.38107786,59667.0,59666.0,10.11880417]
[1726654509436,1.38907786,59667.0,59666.0,10.11880417]
[1726654509649,1.05388486,59667.0,59666.0,10.11880417]
[1726654509871,1.04588486,59667.0,59666.0,10.11880417]
[1726654510143,0.61069186,59667.0,59666.0,10.11880417]
[1726654510356,0.61669186,59667.0,59666.0,10.11880417]
[1726654511437,1.28707786,59667.0,59666.0,10.11880417]
[1726654511645,0.94588486,59667.0,59666.0,10.11880417]
[1726654511854,0.94988486,59667.0,59666.0,10.11880417]
[1726654512285,0.94588486,59667.0,59666.0,9.11880417]
[1726654512764,0.94705631,59667.0,59666.0,9.12380417]
[1726654513011,0.10807431,59667.0,59666.0,9.14180417]
[1726654513258,0.01746042,59670.0,59669.0,0.167591]
[1726654513523,0.01746042,59670.0,59669.0,0.525773]
[1726654513751,0.16758,59673.0,59670.0,0.023]
[1726654513986,0.167578,59674.0,59670.0,0.023]
[1726654514224,0.33513,59679.0,59670.0,0.023]
[1726654514449,0.167564,59679.0,59671.0,0.33517]
[1726654514705,0.01746042,59680.0,59676.0,0.023]
[1726654514918,0.01746042,59680.0,59671.0,0.33517]
[1726654514919,0.837982,59667.0,59666.0,9.11880417]
[1726654515399,1.2035036,59667.0,59666.0,9.11880417]
[1726654515613,1.2045036,59667.0,59666.0,9.12880417]
[1726654515824,1.5396966,59667.0,59666.0,9.12880417]
[1726654516042,1.74223073,59667.0,59666.0,9.11880417]
[1726654516252,1.74223073,59667.0,59666.0,9.11980417]
[1726654516253,2.01544983,59667.0,59666.0,9.11980417]
[1726654516462,2.04544983,59667.0,59666.0,9.11980417]
[1726654516696,2.14340546,59667.0,59666.0,9.11980417]
[1726654516900,2.16789437,59667.0,59666.0,9.11980417]
[1726654517528,2.50308737,59667.0,59666.0,9.11980417]
[1726654517783,2.38064283,59667.0,59666.0,8.78936918]
[1726654517974,2.83435686,59667.0,59666.0,8.77151687]
[1726654518418,2.84435686,59667.0,59666.0,8.50689309]
[1726654518634,2.84235686,59667.0,59666.0,8.50589309]
[1726654518848,2.81202826,59667.0,59666.0,8.50589309]
[1726654519065,2.85652565,59667.0,59666.0,8.50689309]
[1726654519286,2.85652503,59667.0,59666.0,8.19428284]
[1726654519793,2.89742503,59667.0,59666.0,7.87438284]
[1726654520022,2.85652503,59667.0,59666.0,7.83348284]
[1726654520931,1.905618,59667.0,59666.0,7.83348284]
[1726654521615,1.93726,59667.0,59666.0,7.83348284]
[1726654521827,1.97693515,59667.0,59666.0,7.83348284]
[1726654522272,2.07893515,59667.0,59666.0,7.72373833]
[1726654522508,2.8542832,59667.0,59666.0,7.48901202]
[1726654522722,2.91152073,59667.0,59666.0,7.32141202]
[1726654522931,2.88102396,59667.0,59666.0,7.32141202]
[1726654523171,2.92454574,59667.0,59666.0,7.32241202]
[1726654523851,2.92454574,59667.0,59666.0,7.15481202]
[1726654524287,3.51229164,59667.0,59666.0,7.18481202]
[1726654524502,3.24673874,59667.0,59666.0,7.06980232]
[1726654524724,3.89172217,59667.0,59666.0,6.96924232]
[1726654524936,3.57052917,59667.0,59666.0,6.90220232]
[1726654525143,3.91073023,59667.0,59666.0,6.90220232]
[1726654525444,3.47553723,59667.0,59666.0,6.90220232]
[1726654525641,3.10281439,59667.0,59666.0,6.90220232]
[1726654525852,2.67270683,59667.0,59666.0,6.90220232]
[1726654526141,2.39021823,59667.0,59666.0,6.90220232]
[1726654526353,2.20227543,59667.0,59666.0,6.90220232]
[1726654526568,2.20229388,59667.0,59666.0,6.90220232]
[1726654526780,1.60087018,59667.0,59666.0,6.90220232]
[1726654527000,0.90048418,59667.0,59666.0,6.90220232]
[1726654527227,0.0636248,59667.0,59666.0,7.04900232]
[1726654527451,0.09803672,59671.0,59667.0,0.023]
[1726654527664,0.09803672,59674.0,59670.0,0.023]
[1726654527943,0.04906062,59676.0,59667.0,0.190595]
[1726654528134,0.04906062,59676.0,59668.0,0.167592]
[1726654528375,0.04906062,59674.0,59669.0,0.023]
[1726654528592,0.04906062,59675.0,59670.0,0.335174]
[1726654528813,0.09803672,59678.0,59676.0,0.1065]
[1726654528814,0.04906062,59678.0,59676.0,0.1065]
[1726654529034,0.02586464,59689.0,59676.0,0.1065]
[1726654529035,0.04906062,59679.0,59676.0,0.1065]
[1726654529255,0.04906062,59680.0,59677.0,0.167567]
[1726654529500,0.04913843,59678.0,59676.0,0.1065]
[1726654529730,1.00549672,59677.0,59666.0,6.87220232]
[1726654530019,0.502789,59667.0,59666.0,6.87220232]
[1726654530232,0.837982,59667.0,59666.0,6.87220232]
[1726654530506,1.27121172,59667.0,59666.0,6.87220232]
[1726654530741,1.173175,59667.0,59666.0,6.87220232]
[1726654531001,1.61942402,59667.0,59666.0,6.87220232]
[1726654531274,1.71942402,59667.0,59666.0,6.87220232]
[1726654531539,2.08461702,59667.0,59666.0,6.87220232]
[1726654532020,2.08374354,59667.0,59666.0,6.87220232]
[1726654532238,1.74855054,59667.0,59666.0,6.87220232]
[1726654532470,1.74955054,59667.0,59666.0,6.87220232]
[1726654532694,1.21514398,59667.0,59666.0,6.87220232]
[1726654532916,1.04916454,59667.0,59666.0,6.87220232]
[1726654533184,1.38435754,59667.0,59666.0,6.87220232]
[1726654533409,1.88565379,59667.0,59666.0,6.87220232]
[1726654534089,1.71967082,59667.0,59666.0,6.87220232]
[1726654534337,1.38447782,59667.0,59666.0,6.87220232]
[1726654535393,1.38611982,59667.0,59666.0,6.87220232]
[1726654535665,2.50669882,59667.0,59666.0,6.48894548]
[1726654535881,2.50669882,59667.0,59666.0,6.24784548]
[1726654536766,2.50569882,59667.0,59666.0,6.08024548]
[1726654537196,2.04750582,59667.0,59666.0,6.08024548]
[1726654537412,2.01477738,59667.0,59666.0,6.08024548]
[1726654538280,1.69358438,59667.0,59666.0,6.08124548]
[1726654538495,2.02877738,59667.0,59666.0,6.08124548]
[1726654538716,2.11477738,59667.0,59666.0,6.08024548]
[1726654538944,1.76431282,59667.0,59666.0,6.08124548]
[1726654539153,1.69360345,59667.0,59666.0,6.08124548]
[1726654539369,1.69791073,59667.0,59666.0,6.08024548]
[1726654539584,1.71191073,59667.0,59666.0,6.08124548]
[1726654540027,1.69791073,59667.0,59666.0,6.08024548]
[1726654540251,1.66791073,59667.0,59666.0,6.08024548]
[1726654540465,1.81191073,59667.0,59666.0,6.20394548]
[1726654541346,2.14710373,59667.0,59666.0,6.20394548]
[1726654541787,1.81191073,59667.0,59666.0,6.20394548]
[1726654542257,2.12864189,59667.0,59666.0,6.20294548]
[1726654542493,2.29503752,59667.0,59666.0,6.20294548]
[1726654542709,2.27958457,59667.0,59666.0,6.20394548]
[1726654542925,2.29471316,59667.0,59666.0,6.20294548]
[1726654543373,2.13831753,59667.0,59666.0,6.20394548]
[1726654543611,2.13831753,59667.0,59666.0,6.20294548]
[1726654543612,2.12831753,59667.0,59666.0,6.20294548]
[1726654544050,2.12831753,59667.0,59666.0,6.08124548]
[1726654544051,2.13831753,59667.0,59666.0,6.08124548]
[1726654544274,2.12831753,59667.0,59666.0,6.08024548]
[1726654545183,2.14558726,59667.0,59666.0,6.08024548]
[1726654545697,2.31192138,59667.0,59666.0,6.08024548]
[1726654545978,2.1454681,59667.0,59666.0,6.08024548]
[1726654546466,2.1454681,59667.0,59666.0,6.08124548]
[1726654546467,2.1554681,59667.0,59666.0,6.08124548]
[1726654546703,2.1454681,59667.0,59666.0,6.08024548]
[1726654547162,2.1554681,59667.0,59666.0,6.08124548]
[1726654547390,2.1454681,59667.0,59666.0,6.08024548]
[1726654547901,0.8522931,59667.0,59666.0,6.08124548]
[1726654548138,0.0572148,59667.0,59666.0,6.21814548]
[1726654548372,0.00164,59669.0,59666.0,6.21814548]
[1726654548600,0.09867411,59667.0,59666.0,6.21814548]
[1726654549056,0.07399844,59668.0,59666.0,6.21714548]
[1726654549308,0.07399844,59667.0,59666.0,6.21714548]
[1726654549549,0.06,59667.0,59666.0,5.93354276]
[1726654549768,2.045561,59667.0,59666.0,5.81566934]
[1726654549988,2.035561,59667.0,59666.0,5.74762934]
[1726654550212,2.035561,59667.0,59666.0,5.74774934]
[1726654550439,2.035561,59667.0,59666.0,5.75274934]
[1726654550661,2.035561,59667.0,59666.0,5.74774934]
[1726654550877,2.035561,59667.0,59666.0,5.71422934]
[1726654551142,2.383754,59667.0,59666.0,5.58114934]
[1726654551613,3.01420591,59667.0,59666.0,5.58114934]
[1726654551822,3.03720591,59667.0,59666.0,5.58114934]
[1726654552714,2.406754,59667.0,59666.0,5.58114934]
[1726654552977,2.524154,59667.0,59666.0,3.7559121]
[1726654553246,2.44257375,59667.0,59666.0,3.5861121]
[1726654553479,2.396754,59667.0,59666.0,3.56151918]
[1726654553698,2.393754,59667.0,59666.0,3.56051918]
[1726654553923,2.44257337,59667.0,59666.0,3.39291918]
[1726654554148,2.396754,59667.0,59666.0,3.39391918]
[1726654554377,2.393754,59667.0,59666.0,3.39291918]
[1726654554829,2.393754,59667.0,59666.0,3.22631918]
[1726654556263,3.01199711,59667.0,59666.0,3.05771918]
[1726654556494,3.03499711,59667.0,59666.0,3.05771918]
[1726654556760,3.03799711,59667.0,59666.0,3.02519918]
[1726654557027,3.086817,59667.0,59666.0,2.89111918]
[1726654557267,3.083817,59667.0,59666.0,2.89011918]
[1726654557742,3.083817,59667.0,59666.0,2.81320084]
[1726654557974,3.083817,59667.0,59666.0,2.71264084]
[1726654558225,2.90715867,59667.0,59666.0,2.71364084]
[1726654558490,2.93665274,59667.0,59666.0,2.71364084]
[1726654558747,3.54840178,59667.0,59666.0,2.68012084]
[1726654558998,3.57789544,59667.0,59666.0,2.54604084]
[1726654559255,3.57789544,59667.0,59666.0,2.53733855]
[1726654559256,3.54840178,59667.0,59666.0,2.53733855]
[1726654559506,3.57484483,59667.0,59666.0,2.32817591]
[1726654559739,3.57484483,59667.0,59666.0,2.29465591]
[1726654559980,3.57784483,59667.0,59666.0,2.22861591]
[1726654560234,3.57484483,59667.0,59666.0,2.16057591]
[1726654560453,3.59494009,59667.0,59666.0,2.15108119]
[1726654560710,3.59794009,59667.0,59666.0,2.15208119]
[1726654561386,3.59794009,59667.0,59666.0,1.83873453]
[1726654561617,3.84019214,59667.0,59666.0,1.83873453]
[1726654561877,3.84019214,59667.0,59666.0,1.80521453]
[1726654561878,3.59770002,59667.0,59666.0,1.80521453]
[1726654562154,3.59770002,59667.0,59666.0,1.67113453]
[1726654562659,3.23950702,59667.0,59666.0,1.67113453]
[1726654562918,3.23950702,59667.0,59666.0,1.67013453]
[1726654562919,3.18768713,59667.0,59666.0,1.67013453]
[1726654563178,2.87934258,59667.0,59666.0,1.67113453]
[1726654563667,2.94262107,59667.0,59666.0,1.67013453]
[1726654563895,2.94562107,59667.0,59666.0,1.67113453]
[1726654564113,2.94262107,59667.0,59666.0,1.67013453]
[1726654564576,3.188115,59667.0,59666.0,1.67113453]
[1726654564813,2.89472276,59667.0,59666.0,1.67013453]
[1726654565253,2.84228469,59667.0,59666.0,1.67013453]
[1726654565913,2.84258856,59667.0,59666.0,1.63661453]
[1726654566341,2.94558856,59667.0,59666.0,1.63761453]
[1726654566632,3.58383167,59667.0,59666.0,1.63661453]
[1726654566845,2.94258856,59667.0,59666.0,1.63661453]
[1726654567066,6.54160867,59667.0,59666.0,0.4962426]
[1726654567305,6.54160867,59667.0,59660.0,0.002]
[1726654567306,0.882613,59661.0,59660.0,0.002]
[1726654567499,0.595076,59633.0,59632.0,0.013776]
[1726654567713,2.47829505,59633.0,59632.0,0.013776]
[1726654567931,2.98759757,59633.0,59632.0,0.013776]
[1726654568150,2.98759757,59633.0,59628.0,0.000822]
[1726654568151,1.265865,59632.0,59628.0,0.000822]
[1726654568381,2.96306388,59632.0,59631.0,1e-06]
[1726654568629,0.259706,59628.0,59627.0,0.00013832]
[1726654568840,2.5537931,59628.0,59627.0,0.00013832]
[1726654569064,2.65263694,59628.0,59627.0,0.00013832]
[1726654569287,2.77563694,59628.0,59627.0,3.2e-07]
[1726654569502,1.364218,59614.0,59613.0,0.1251]
[1726654712652,0.001642,59606.0,59604.0,0.167771]
[1726654713057,0.001642,59606.0,59601.0,0.3372]
[1726654713806,0.001642,59606.0,59604.0,0.167773]
[1726654714011,0.001642,59606.0,59603.0,0.335553]
[1726654714213,0.001642,59606.0,59605.0,0.167771]
[1726654714434,0.001642,59606.0,59605.0,0.838855]
[1726654714567,0.001642,59606.0,59605.0,0.167771]
[1726654715179,0.001642,59606.0,59603.0,0.167775]
[1726654715378,0.001642,59606.0,59602.0,0.335557]
[1726654715573,0.001642,59606.0,59604.0,0.167773]
[1726654715814,0.001642,59606.0,59604.0,0.167772]
[1726654716150,0.167774,59604.0,59601.0,0.1862]
[1726654716378,0.00011327,59605.0,59594.0,0.1542]
[1726654716608,0.33557,59600.0,59591.0,0.1786]
[1726654716823,0.00011327,59603.0,59591.0,0.1786]
[1726654717065,0.335562,59602.0,59593.0,0.167803]
[1726654717285,0.335564,59601.0,59592.0,0.167806]
[1726654717486,0.00011327,59603.0,59600.0,0.167784]
[1726654717694,0.001642,59606.0,59600.0,0.167783]
[1726654717966,0.001642,59606.0,59599.0,0.335574]
[1726654718129,0.001642,59606.0,59602.0,0.167778]
[1726654718468,0.001642,59606.0,59604.0,0.167771]
[1726654718762,0.001642,59606.0,59601.0,0.16778]
[1726654718981,0.001642,59606.0,59602.0,0.167779]
[1726654719172,0.001642,59606.0,59603.0,0.167776]
[1726654720019,0.001642,59606.0,59600.0,0.167784]
[1726654720157,0.001642,59606.0,59591.0,0.1786]
[1726654720365,0.335549,59604.0,59592.0,0.16305367]
[1726654720561,0.001642,59606.0,59592.0,0.16305367]
[1726654720922,0.169411,59606.0,59592.0,0.16305367]
[1726654721118,0.001642,59606.0,59602.0,0.335558]
[1726654721234,0.001642,59606.0,59600.0,0.1578]
[1726654721476,0.001642,59606.0,59605.0,0.503313]
[1726654721695,0.16785727,59615.0,59606.0,0.013358]
[1726654721890,0.16785927,59614.0,59606.0,0.013358]
[1726654722154,0.00011327,59613.0,59607.0,0.167764]
[1726654722357,0.352781,59616.0,59606.0,0.013358]
[1726654722358,0.16785727,59615.0,59606.0,0.013358]
[1726654722578,0.0173,59616.0,59606.0,0.013358]
[1726654722835,0.16786227,59613.0,59607.0,0.167765]
[1726654723042,0.00011327,59613.0,59608.0,0.167762]
[1726654723255,0.16785927,59614.0,59608.0,0.167762]
[1726654723416,0.00011327,59614.0,59608.0,0.167762]
[1726654723618,0.00011327,59614.0,59609.0,0.167759]
[1726654723816,0.16785627,59615.0,59609.0,0.167759]
[1726654723989,0.18504,59616.0,59609.0,0.167759]
[1726654724191,0.0173,59616.0,59610.0,0.167756]
[1726654724797,0.16785727,59615.0,59607.0,0.335528]
[1726654724912,0.0173,59616.0,59609.0,0.335519]
[1726654725117,0.0173,59616.0,59608.0,0.1953]
[1726654725564,0.0173,59616.0,59609.0,0.503273]
[1726654725787,0.0173,59616.0,59610.0,0.167757]
[1726654725946,0.0173,59616.0,59612.0,0.16775]
[1726654726151,0.0173,59616.0,59611.0,0.167752]
[1726654726830,0.0173,59616.0,59612.0,0.16775]
[1726654727040,0.0173,59616.0,59608.0,0.1953]
[1726654727041,0.0173,59616.0,59615.0,0.167743]
[1726654727380,0.0173,59616.0,59613.0,0.503242]
[1726654727583,0.0173,59616.0,59612.0,0.335501]
[1726654727801,0.0173,59616.0,59612.0,0.167749]
[1726654728029,0.0173,59616.0,59613.0,0.167747]
[1726654728238,0.0173,59616.0,59614.0,0.167745]
[1726654729715,0.0173,59616.0,59613.0,0.167747]
[1726654729920,0.0173,59616.0,59611.0,0.1607]
[1726654730222,0.0173,59616.0,59608.0,0.1953]
[1726654730223,0.335493,59614.0,59608.0,0.1953]
[1726654730348,0.167752,59612.0,59608.0,0.1953]
[1726654730548,0.167752,59612.0,59606.0,0.167766]
[1726654730816,0.16785927,59614.0,59605.0,0.335538]
[1726654731042,0.00011327,59614.0,59609.0,0.167757]
[1726654731246,0.00011327,59614.0,59610.0,0.167756]
[1726654731801,0.33433885,59613.0,59610.0,0.167756]
[1726654732087,0.33433885,59612.0,59610.0,0.167756]
[1726654732278,0.33433885,59611.0,59603.0,0.1551]
[1726654732471,0.09886665,59606.0,59605.0,0.503309]
[1726654732723,0.09886665,59607.0,59606.0,0.503304]
[1726654732951,0.09886665,59607.0,59606.0,0.83884]
[1726654733178,0.43635708,59607.0,59606.0,0.83884]
[1726654733877,0.32698574,59607.0,59606.0,0.503304]
[1726654734095,0.33749045,59607.0,59606.0,0.83884]
[1726654734768,0.43635989,59607.0,59606.0,0.83884]
[1726654735426,0.41085518,59607.0,59606.0,0.83884]
[1726654735654,0.09437415,59607.0,59606.0,0.83884]
[1726654735880,0.01050471,59607.0,59606.0,0.83884]
[1726654736328,0.33749045,59607.0,59606.0,0.83884]
[1726654737636,0.34049346,59607.0,59606.0,0.83884]
[1726654738691,0.34049346,59607.0,59606.0,0.503304]
[1726654738914,0.34049346,59607.0,59603.0,0.0571329]
[1726654738915,0.08466223,59607.0,59604.0,0.167771]
[1726654739141,0.07415532,59605.0,59599.0,0.1933]
[1726654739414,0.167791,59598.0,59589.0,0.1807]
[1726654739636,0.12357382,59601.0,59590.0,0.167812]
[1726654739637,0.07414115,59595.0,59590.0,0.167812]
[1726654739877,0.07413963,59595.0,59591.0,0.167809]
[1726654740098,0.07413963,59595.0,59589.0,0.1807]